lending/lending_fUSD_20260119
["ID","MTS","AMOUNT","RATE_DAILY","PERIOD"]
[402671996,1768783835652,-500.0,0.00017799,2]
[402671997,1768783835662,-500.0,0.00017799,2]
[402671998,1768783835671,-500.0,0.00017799,2]
[402671999,1768783835680,-500.0,0.00017799,2]
[402672000,1768783835690,-500.0,0.00017799,2]
[402672001,1768783835699,-500.0,0.00017799,2]
[402672002,1768783835708,-500.0,0.00017799,2]
[402672003,1768783835718,-500.0,0.00017799,2]
[402672004,1768783835727,-167.54558577,0.00017799,2]
[402672005,1768783835737,-500.0,0.00017799,2]
[402672006,1768783835746,-500.0,0.00017799,2]
[402672007,1768783835756,-500.0,0.00017799,2]
[402672008,1768783835765,-500.0,0.00017799,2]
[402672009,1768783835774,-500.0,0.00017799,2]
[402672010,1768783835783,-500.0,0.00017799,2]
[402672011,1768783835792,-500.0,0.00017799,2]
[402672012,1768783835801,-500.0,0.00017799,2]
[402672013,1768783835811,-500.0,0.00017799,2]
[402672014,1768783835820,-500.0,0.00017799,2]
[402672015,1768783835830,-500.0,0.00017799,2]
[402672016,1768783835839,-500.0,0.00017799,2]
[402672017,1768783835849,-525.29097459,0.00017799,2]
[402672018,1768783835859,-500.0,0.00017799,2]
[402672019,1768783835869,-500.0,0.00017799,2]
[402672020,1768783835879,-300.0,0.00017799,2]
[402672021,1768783835889,-342.19990815,0.00017799,2]
[402672022,1768783835899,-166.36316298,0.000178,2]
[402672023,1768783835908,-140000.14,0.000178,2]
[402672024,1768783835917,-150.0,0.000178,2]
[402672025,1768783835927,-150.0,0.000178,2]
[402672026,1768783835937,-800.0,0.000178,6]
[402672027,1768783835947,-151.0,0.00017807,2]
[402672028,1768783835966,-1000.0,0.00017808,2]
[402672029,1768783835977,-350.0,0.00017809,2]
[402672030,1768783835987,-500.0,0.00017809,2]
[402672031,1768783835997,-644.0,0.00017809,2]
[402672032,1768783836007,-150.0,0.00017809,2]
[402672033,1768783836018,-500.0,0.00017809,2]
[402672034,1768783836028,-150.0,0.00017809,2]
[402672035,1768783836038,-500.0,0.00017809,2]
[402672036,1768783836049,-500.0,0.00017809,2]
[402672037,1768783836059,-500.0,0.00017809,2]
[402672038,1768783836070,-450.99535401,0.00017809,2]
[402672039,1768783836080,-500.0,0.00017809,2]
[402672040,1768783836090,-150.0,0.00017809,2]
[402672041,1768783836100,-8429.30299665,0.00017811,2]
[402672042,1768783836113,-165.73574,0.0001782,2]
[402672043,1768783836122,-165.73573,0.0001782,2]
[402672044,1768783836132,-353.53140031,0.0001783,2]
[402672045,1768783836142,-4841.15459998,0.0001783,2]
[402672046,1768783836152,-8429.30299665,0.00017833,2]
[402672047,1768783836162,-221.0,0.00017836,2]
[402672048,1768783836171,-151.0,0.00017845,2]
[402672049,1768783836181,-166.36316298,0.0001785,2]
[402672050,1768783836191,-150.0,0.0001785,2]
[402672051,1768783836201,-1000.0,0.0001785,2]
[402672052,1768783836211,-8429.30299665,0.00017856,2]
[402672053,1768783836221,-200.0,0.00017856,2]
[402672054,1768783836231,-559.56,0.00017857,2]
[402672055,1768783836241,-500.0,0.00017863,2]
[402672056,1768783836251,-644.0,0.00017863,2]
[402672057,1768783836261,-500.0,0.00017863,2]
[402672058,1768783836270,-500.0,0.00017863,2]
[402672059,1768783836279,-500.0,0.00017863,2]
[402672060,1768783836289,-500.0,0.00017863,2]
[402672061,1768783836299,-500.0,0.00017863,2]
[402672062,1768783836309,-150.0,0.00017863,2]
[402672063,1768783836319,-151.18171079,0.00017875,2]
[402672064,1768783836331,-187.78006525,0.00017875,2]
[402672065,1768783836341,-617.40005154,0.00017875,2]
[402672066,1768783836351,-8429.30299665,0.00017878,2]
[402672067,1768783836362,-151.0,0.00017884,2]
[402672068,1768783836372,-150.0,0.00017887,2]
[402672069,1768783836381,-500.0,0.00017899,2]
[402672070,1768783836390,-500.0,0.00017899,2]
[402672071,1768783836401,-300.0,0.00017899,2]
[402672072,1768783836410,-500.0,0.00017899,2]
[402672073,1768783836419,-12819.45633016,0.000179,3]
[402672074,1768783836439,-854.48477961,0.000179,3]
[402672075,1768783836449,-1029.1671,0.000179,2]
[402672076,1768783836458,-1000.0,0.000179,2]
[402672077,1768783836467,-3219.2216,0.000179,2]
[402672078,1768783836477,-25000.0,0.000179,3]
[402672079,1768783836487,-1534.24420273,0.000179,2]
[402672080,1768783836496,-8429.30299665,0.000179,2]
[402672081,1768783836511,-800.0,0.000179,6]
[402672082,1768783836522,-166.36316298,0.000179,2]
[402672083,1768783836532,-551.93490972,0.000179,2]
[402672084,1768783836542,-3901.0,0.000179,2]
[402672085,1768783836552,-927.16385841,0.00017913,2]
[402672086,1768783836562,-500.0,0.00017917,2]
[402672087,1768783836571,-500.0,0.00017918,2]
[402672088,1768783836581,-644.0,0.00017918,2]
[402672089,1768783836591,-551.64421401,0.00017918,2]
[402672090,1768783836601,-350.0,0.00017918,2]
[402672091,1768783836612,-500.0,0.00017918,2]
[402672092,1768783836622,-333.00097372,0.00017918,2]
[402672093,1768783836632,-500.0,0.00017918,2]
[402672094,1768783836642,-181.5474637,0.00017918,2]
[402672095,1768783836652,-151.0,0.00017923,2]
[402672096,1768783836661,-148.10887889,0.00017961,2]
[402672097,1768783836673,-2.89112111,0.00017961,2]
[402672098,1768783836683,-150.0,0.00017973,2]
[402672099,1768783836693,-584.8031864,0.00017973,2]
[402672100,1768783836702,-500.0,0.00017973,2]
[402672101,1768783836712,-500.0,0.00017973,2]
[402672102,1768783836721,-644.0,0.00017973,2]
[402672103,1768783836730,-500.0,0.00017973,2]
[402672104,1768783836740,-152.0,0.00017973,2]
[402672105,1768783836750,-221.37781023,0.00017973,2]
[402672106,1768783836759,-585.91940198,0.0001799,2]
[402672107,1768783836769,-585.91940198,0.0001799,2]
[402672108,1768783836779,-585.91940198,0.0001799,2]
[402672109,1768783836789,-9364.0478607,0.00017991,2]
[402672110,1768783836798,-3098.7998265,0.00017991,2]
[402672111,1768783836807,-5239.3115259,0.00017995,2]
[402672112,1768783836817,-1000.0,0.00017997,2]
[402672113,1768783836827,-151.0,0.00017997,2]
[402672114,1768783836837,-150.0,0.00017999,2]
[402672115,1768783836847,-150.0,0.00017999,2]
[402672116,1768783836858,-150.0,0.00017999,2]
[402672117,1768783836868,-150.0,0.00017999,2]
[402672118,1768783836878,-150.0,0.00017999,2]
[402672119,1768783836889,-150.0,0.00017999,2]
[402672120,1768783836899,-173.87388004,0.00017999,2]
[402672121,1768783836909,-12722.1850989,0.00017999,2]
[402672122,1768783836919,-3525.4515974,0.00017999,2]
[402672123,1768783836929,-155.0,0.00017999,2]
[402672124,1768783836939,-300.0,0.00017999,2]
[402672125,1768783836948,-283.21567597,0.00017999,2]
[402672126,1768783836959,-500.0,0.00017999,2]
[402672127,1768783836969,-500.0,0.00017999,2]
[402672128,1768783836978,-500.0,0.00017999,2]
[402672129,1768783836988,-500.0,0.00017999,2]
[402672130,1768783836998,-500.0,0.00017999,2]
[402672131,1768783837008,-616.5980206,0.00017999,2]
[402672132,1768783837017,-382.78432403,0.00017999,2]
[402672133,1768783837028,-190.05473829,0.00017999,2]
[402672134,1768783837038,-150.0,0.00018,2]
[402672135,1768783837047,-150.0,0.00018,2]
[402672136,1768783837062,-150.0,0.00018,2]
[402672137,1768783837072,-150.0,0.00018,2]
[402672138,1768783837082,-150.0,0.00018,2]
[402672139,1768783837092,-150.0,0.00018,2]
[402672140,1768783837102,-150.0,0.00018,2]
[402672141,1768783837113,-150.0,0.00018,2]
[402672142,1768783837123,-171.96838968,0.00018,2]
[402672143,1768783837133,-102962.75961583,0.00018,2]
[402672144,1768783837146,-19179.05875372,0.00018,2]
[402672145,1768783837157,-335.26580545,0.00018,2]
[402672146,1768783837171,-7805.35260329,0.00018,2]
[402672147,1768783837187,-2579.82837852,0.00018,2]
[402672148,1768783837198,-1014.02545008,0.00018,2]
[402672149,1768783837210,-334.59179807,0.00018,2]
[402672150,1768783837228,-2225.9,0.00018,2]
[402672151,1768783837252,-5398.67852417,0.00018,2]
[402672152,1768783837264,-2093.43107115,0.00018,2]
[402672153,1768783837276,-320.124,0.00018,2]
[402672154,1768783837287,-999.67682255,0.00018,2]
[402672155,1768783837314,-500.0,0.00017788,2]
[402672156,1768783837324,-10388.2240091,0.00018,2]
[402672160,1768783838201,-158.0,0.00016103,2]
[402672161,1768783838211,-242.0,0.0001686,2]
[402672162,1768783838220,-234758.18357509,0.00018,2]
[402672163,1768783838238,-158916.64540058,0.00018,2]
[402672164,1768783838250,-816.58595,0.00018,2]
[402672165,1768783838263,-1527.01041997,0.00018,2]
[402672166,1768783838276,-1949.99999,0.00018,2]
[402672167,1768783838288,-117482.41400045,0.00018,2]
[402672168,1768783838309,-137953.68829198,0.00018,2]
[402672169,1768783838321,-403.1244299,0.00018,2]
[402672170,1768783838337,-1650.0,0.00018,2]
[402672171,1768783838349,-722.46490153,0.00018,2]
[402672172,1768783838361,-1275.36724596,0.00018,2]
[402672360,1768783840333,-158.0,0.00016103,2]
[402672362,1768783840342,-158.0,0.00016103,2]
[402672363,1768783840351,-158.0,0.00016103,2]
[402672366,1768783840361,-4638.75743251,0.00018,2]
[402672368,1768783840372,-1521.66430468,0.00018,2]
[402672376,1768783840439,-2222942.9833257,0.00018,2]
[402672484,1768783843057,-158.0,0.00016103,2]
[402672485,1768783843067,-158.0,0.00016103,2]
[402672486,1768783843077,-151.0,0.00016882,2]
[402672487,1768783843087,-151.0,0.00016882,2]
[402672488,1768783843097,-500.0,0.00017799,2]
[402672489,1768783843106,-172709.49458201,0.00018,2]
[402672490,1768783843178,-1447.0085,0.00018,2]
[402672501,1768783845954,-160.32930478,0.000179,2]
[402672502,1768783845963,-1948.98069522,0.00018,2]
[402672503,1768783846056,-3655.42176437,0.00018,2]
[402672504,1768783846070,-29249.52795702,0.00018,2]
[402672505,1768783846110,-830.174456,0.00018,2]
[402672510,1768783846631,-2552.09552065,0.00018,2]
[402672511,1768783935189,291.242939,0.00015,2]
[402672512,1768784460810,-202.62746273,0.00015773,2]
[402672513,1768784460833,-205.96973091,0.00015773,2]
[402672514,1768784479211,166.66,0.00014748,2]
[402672515,1768784479284,166.66,0.00015059,2]
[402672516,1768784505884,-166.66,0.00015369,2]
[402672517,1768784506274,-166.66,0.0001568,2]
[402672518,1768784506297,-76.03026909,0.00015773,2]
[402672519,1768784506319,-16.78453461,0.00015779,2]
[402672520,1768784508187,-176.59405375,0.00015513,2]
[402672521,1768784511550,-580.43958364,0.00015513,2]
[402672522,1768784513260,-189.82412804,0.00015513,2]
[402672523,1768784515606,-53.14223457,0.00015513,2]
[402672524,1768784515630,-362.18103428,0.00015513,2]
[402672525,1768784518409,-166.66000017,0.00015513,2]
[402672526,1768784519887,-165.56161068,0.00015513,2]
[402672527,1768784523711,-181.58140968,0.00015513,2]
[402672528,1768784527068,-300.0,0.00015513,2]
[402672529,1768784530996,-292.67,0.00015513,2]
[402672530,1768784532582,-292.88949726,0.00015513,2]
[402672531,1768784535385,-280.91058091,0.00015513,2]
[402672532,1768784537562,-204.7351323,0.00015513,2]
[402672533,1768784539455,-231.48647863,0.00015513,2]
[402672534,1768784540778,-232.09640326,0.00015513,2]
[402672535,1768784542895,-264.87733376,0.00015513,2]
[402672536,1768784544826,-192.71582831,0.00015513,2]
[402672537,1768784546526,-195.96,0.00015513,2]
[402672538,1768784548340,-85.29469076,0.00015513,2]
[402672539,1768784548364,-180.14659575,0.00015679,2]
[402672540,1768784548387,-56.14273793,0.00015743,2]
[402672541,1768784552597,-110.51726207,0.00015743,2]
[402672542,1768784552620,-102.93515167,0.00015779,2]
[402672543,1768784555521,-130.28031372,0.00015779,2]
[402672544,1768784555547,-121.60941278,0.00015784,2]
[402672545,1768784558124,-73.39058722,0.00015784,2]
[402672546,1768784558147,-108.46483687,0.00015794,2]
[402672547,1768784561358,-71.68175888,0.00015794,2]
[402672548,1768784561381,-272.17589116,0.00015795,2]
[402672549,1768784563519,-279.24068855,0.00015795,2]
[402672550,1768784565167,-230.39093188,0.00015795,2]
[402672551,1768784572387,-170.81,0.00015544,2]
[402672552,1768784572410,-129.19,0.00015795,2]
[402672553,1768784575875,-214.52371036,0.00015795,2]
[402672554,1768784579136,-304.0,0.00015795,2]
[402672555,1768784582488,-263.23449992,0.00015795,2]
[402672556,1768784585561,-236.43861474,0.00015795,2]
[402672557,1768784589374,-300.0,0.00015794,2]
[402672558,1768784589400,-42.80317498,0.00015795,2]
[402672559,1768784593460,-472.64367564,0.00015795,2]
[402672560,1768784599131,-170.23876717,0.00015794,2]
[402672561,1768784601392,-253.15261541,0.00015794,2]
[402672562,1768784605815,-290.77299761,0.00015794,2]
[402672563,1768784608037,-300.0,0.00015794,2]
[402672564,1768784612321,-185.83561981,0.00015794,2]
[402672565,1768784612343,-58.37409852,0.00015795,2]
[402672566,1768784614119,-275.95589045,0.00015795,2]
[402672567,1768784616279,-274.80143649,0.00015795,2]
[402672568,1768784619303,150.12,0.00012771,2]
[402672569,1768784619376,150.12,0.00014048,2]
[402672570,1768784623172,-150.12,0.00015325,2]
[402672571,1768784623194,-107.4843874,0.00015795,2]
[402672572,1768784625899,-209.075767,0.00015795,2]
[402672573,1768784628945,-157.5447445,0.00015795,2]
[402672574,1768784632800,-165.17107784,0.00015795,2]
[402672575,1768784635531,-163.99097733,0.00015795,2]
[402672576,1768784637744,-385.66702047,0.00015795,2]
[402672577,1768784637766,-61.86109762,0.00015795,2]
[402672578,1768784640149,-166.46688855,0.00015795,2]
[402672579,1768784646715,-446.58901914,0.00015795,2]
[402672580,1768784649462,-214.25391905,0.00015795,2]
[402672581,1768784654867,-224.77917528,0.00015795,2]
[402672582,1768784658708,-426.22082472,0.00015795,2]
[402672583,1768784661814,-366.33895479,0.00015795,2]
[402672584,1768784664544,-241.41027965,0.00015795,2]
[402672585,1768784667143,-277.31602,0.00015795,2]
[402672586,1768784669575,-163.39236788,0.00015795,2]
[402672587,1768784675135,-287.97777892,0.00015795,2]
[402672588,1768784677995,-169.95676417,0.00015795,2]
[402672589,1768784680371,-245.53446097,0.00015795,2]
[402672590,1768784683197,-357.7650359,0.00015795,2]
[402672591,1768784685552,-282.87701377,0.00015795,2]
[402672592,1768784687332,-41.31989959,0.00015795,2]
[402672593,1768784687356,-146.90902078,0.00015813,2]
[402672594,1768784690110,-103.09097922,0.00015813,2]
[402672595,1768784690134,-55.38013366,0.0001584,2]
[402672596,1768784694379,-139.61986634,0.0001584,2]
[402672597,1768784694405,-73.54612266,0.00015868,2]
[402672598,1768784697895,-184.94304819,0.00015868,2]
[402672599,1768784697919,-87.63460853,0.00015868,2]
[402672600,1768784700014,-326.37555029,0.00015868,2]
[402672601,1768784704272,-300.0,0.00015867,2]
[402672602,1768784704297,-53.77486985,0.00015867,2]
[402672603,1768784707332,-448.17538797,0.00015867,2]
[402672604,1768784710278,-202.82461203,0.00015867,2]
[402672605,1768784713986,-181.32436927,0.00015867,2]
[402672606,1768784718373,-303.20627472,0.00015867,2]
[402672607,1768784721073,-10.69448616,0.00015867,2]
[402672608,1768784721096,-155.77486985,0.00015867,2]
[402672609,1768784723235,-144.22513015,0.00015867,2]
[402672610,1768784723260,-300.0,0.00015867,2]
[402672611,1768784723286,-134.55670393,0.00015868,2]
[402672612,1768784726760,-252.51691003,0.00015868,2]
[402672613,1768784729985,-298.86504566,0.00015868,2]
[402672614,1768784734888,-276.89764549,0.00015868,2]
[402672615,1768784738332,-324.08419235,0.00015868,2]
[402672616,1768784742672,-176.41975987,0.00015868,2]
[402672617,1768784746079,-213.4883559,0.00015868,2]
[402672618,1768784748389,-156.09472405,0.00015868,2]
[402672619,1768784751389,-189.28675819,0.00015868,2]
[402672620,1768784753807,-177.79348363,0.00015868,2]
[402672621,1768784755979,-187.8127565,0.00015868,2]
[402672622,1768784757666,-176.61636747,0.00015868,2]
[402672623,1768784760056,-289.66656594,0.00015868,2]
[402672624,1768784765212,-156.96561264,0.00015868,2]
[402672625,1768784767487,-146.2462418,0.00015868,2]
[402672626,1768784767510,-88.14751807,0.00015868,2]
[402672627,1768784769770,-317.99343668,0.00015868,2]
[402672628,1768784771895,-310.09151397,0.00015868,2]
[402672629,1768784774202,-393.03438736,0.00015868,2]
[402672630,1768784777604,-152.41425195,0.00015868,2]
[402672631,1768784779197,-300.0,0.00015868,2]
[402672632,1768784781347,-338.90748055,0.00015868,2]
[402672633,1768784785114,-216.56969934,0.00015868,2]
[402672634,1768784787439,-381.25081685,0.00015868,2]
[402672635,1768784788999,-290.46004957,0.00015868,2]
[402672636,1768784790586,-440.61985832,0.00015868,2]
[402672637,1768784793219,-462.83586487,0.00015868,2]
[402672638,1768784795756,-166.64583723,0.00015868,2]
[402672639,1768784797050,-197.60139504,0.00015868,2]
[402672640,1768784799215,-214.24848571,0.00015868,2]
[402672641,1768784801375,-193.87050116,0.00015868,2]
[402672642,1768784804979,-202.62746272,0.00015868,2]
[402672643,1768784807092,-513.01739634,0.00015868,2]
[402672644,1768784810748,-170.41859032,0.00015868,2]
[402672645,1768784813587,-568.52070417,0.00015868,2]
[402672646,1768784815850,-440.17202069,0.00015868,2]
[402672647,1768784823792,-180.14659574,0.00015768,2]
[402672648,1768784823817,-11.33997049,0.00015868,2]
[402672649,1768784825523,-191.32224047,0.00015868,2]
[402672650,1768784829167,-195.05171059,0.00015868,2]
[402672651,1768784831724,-297.04663651,0.00015868,2]
[402672652,1768784834443,-204.24903758,0.00015868,2]
[402672653,1768784836887,-296.73090551,0.00015868,2]
[402672654,1768784839552,-45.8045021,0.00015868,2]
[402672655,1768784839575,-151.31640831,0.00015868,2]
[402672656,1768784839596,-46.06240897,0.00015885,3]
[402672657,1768784843149,-229.06329939,0.00015885,3]
[402672658,1768784845281,-485.88281398,0.00015885,3]
[402672659,1768784848595,-208.75968596,0.00015868,2]
[402672660,1768784850798,-448.84633014,0.00015868,2]
[402672661,1768784855511,-155.82084239,0.00015868,2]
[402672662,1768784857649,-198.9426937,0.00015868,2]
[402672663,1768784859868,-181.39136137,0.00015868,2]
[402672664,1768784861943,-162.78779624,0.00015868,2]
[402672665,1768784864211,-73.3496712,0.00015868,2]
[402672666,1768784864233,-83.87147766,0.00015885,3]
[402672667,1768784864256,-157.19418227,0.00015886,2]
[402672668,1768784867548,-42.80581773,0.00015886,2]
[402672669,1768784867570,-113.41032575,0.00015886,2]
[402672670,1768784869228,-175.53472895,0.00015886,2]
[402672671,1768784872449,-211.0549453,0.00015886,2]
[402672672,1768784872471,-10.94765519,0.00015886,2]
[402672673,1768784874927,-489.05234481,0.00015886,2]
[402672674,1768784874949,-11.4701458,0.00015886,2]
[402672675,1768784877838,-195.96,0.00015886,2]
[402672676,1768784879950,-266.0,0.00015886,2]
[402672677,1768784883183,-272.70300979,0.00015885,2]
[402672678,1768784884789,-27.29699021,0.00015885,2]
[402672679,1768784884816,-26.5698542,0.00015886,2]
[402672680,1768784884838,-320.81023957,0.00015886,2]
[402672681,1768784886450,-166.66,0.00015886,2]
[402672682,1768784888173,-12.52976043,0.00015886,2]
[402672683,1768784888198,-139.39578979,0.00015886,2]
[402672684,1768784890975,-205.56703205,0.00015886,2]
[402672685,1768784892928,-155.03717816,0.00015886,2]
[402672686,1768784892952,-500.0,0.00015886,2]
[402672687,1768784892976,-500.0,0.00015886,2]
[402672688,1768784892999,-500.0,0.00015886,2]
[402672689,1768784893022,-500.0,0.00015886,2]
[402672690,1768784893047,-500.0,0.00015886,2]
[402672691,1768784893072,-500.0,0.00015886,2]
[402672692,1768784893095,-500.0,0.00015886,2]
[402672693,1768784893120,-500.0,0.00015886,2]
[402672694,1768784893144,-500.0,0.00015886,2]
[402672695,1768784893169,-500.0,0.00015886,2]
[402672696,1768784893194,-500.0,0.00015886,2]
[402672697,1768784893219,-516.16277516,0.00015886,2]
[402672698,1768784893245,-500.0,0.00015886,2]
[402672699,1768784893270,-500.0,0.00015886,2]
[402672700,1768784893294,-202.81055086,0.00015886,2]
[402672701,1768784893320,-151.0,0.00015886,2]
[402672702,1768784893343,-151.0,0.00015886,2]
[402672703,1768784893366,-151.0,0.00015886,2]
[402672704,1768784893389,-151.0,0.00015886,2]
[402672705,1768784893412,-151.0,0.00015886,2]
[402672706,1768784893434,-151.0,0.00015886,2]
[402672707,1768784893457,-151.0,0.00015886,2]
[402672708,1768784893479,-151.0,0.00015886,2]
[402672709,1768784893503,-151.0,0.00015886,2]
[402672710,1768784893525,-151.0,0.00015886,2]
[402672711,1768784893549,-151.0,0.00015886,2]
[402672712,1768784893572,-151.0,0.00015886,2]
[402672713,1768784893595,-151.0,0.00015886,2]
[402672714,1768784893617,-151.0,0.00015886,2]
[402672715,1768784893640,-151.0,0.00015886,2]
[402672716,1768784893663,-151.0,0.00015886,2]
[402672717,1768784893686,-151.0,0.00015886,2]
[402672718,1768784893709,-151.0,0.00015886,2]
[402672719,1768784893733,-151.0,0.00015886,2]
[402672720,1768784893759,-151.0,0.00015886,2]
[402672721,1768784893783,-151.0,0.00015886,2]
[402672722,1768784893807,-151.0,0.00015886,2]
[402672723,1768784893830,-151.0,0.00015886,2]
[402672724,1768784893856,-202.29369022,0.00015886,2]
[402672725,1768784893880,-151.0,0.00015886,2]
[402672726,1768784893903,-151.0,0.00015886,2]
[402672727,1768784893925,-151.0,0.00015886,2]
[402672728,1768784893948,-151.0,0.00015886,2]
[402672729,1768784893970,-151.0,0.00015886,2]
[402672730,1768784893993,-151.0,0.00015886,2]
[402672731,1768784894025,-151.0,0.00015886,2]
[402672732,1768784894048,-154.24798212,0.00015886,2]
[402672733,1768784894073,-216.160695,0.00015892,2]
[402672734,1768784894097,-150.0,0.00015893,2]
[402672735,1768784894119,-500.0,0.00015894,2]
[402672736,1768784894142,-500.0,0.00015894,2]
[402672737,1768784894165,-500.0,0.00015894,2]
[402672738,1768784894188,-2899.023,0.00015894,2]
[402672739,1768784894211,-189.327,0.00015894,2]
[402672740,1768784894235,-500.0,0.00015894,2]
[402672741,1768784894259,-368.70990999,0.00015894,2]
[402672742,1768784894282,-676.52,0.00015894,2]
[402672743,1768784894305,-500.0,0.00015894,2]
[402672744,1768784894331,-500.0,0.00015894,2]
[402672745,1768784894354,-500.0,0.00015894,2]
[402672746,1768784894377,-500.0,0.00015894,2]
[402672747,1768784894399,-386.45682453,0.00015894,2]
[402672748,1768784894422,-500.0,0.00015894,2]
[402672749,1768784894445,-338.03747108,0.00015894,2]
[402672750,1768784894468,-400.95252733,0.00015894,2]
[402672751,1768784894495,-500.0,0.00015894,2]
[402672752,1768784894521,-500.0,0.00015894,2]
[402672753,1768784894542,-304.17317737,0.00015894,2]
[402672754,1768784894569,-500.0,0.00015894,2]
[402672755,1768784894594,-500.0,0.00015894,2]
[402672756,1768784894619,-500.0,0.00015894,2]
[402672757,1768784894644,-500.0,0.00015894,2]
[402672758,1768784894670,-500.0,0.00015894,2]
[402672759,1768784894695,-500.0,0.00015894,2]
[402672760,1768784894719,-500.0,0.00015894,2]
[402672761,1768784894745,-500.0,0.00015894,2]
[402672762,1768784894772,-500.0,0.00015894,2]
[402672763,1768784895014,-500.0,0.00015894,2]
[402672764,1768784895053,-500.0,0.00015894,2]
[402672765,1768784895081,-500.0,0.00015894,2]
[402672766,1768784895106,-500.0,0.00015894,2]
[402672767,1768784895132,-500.0,0.00015894,2]
[402672768,1768784895157,-500.0,0.00015894,2]
[402672769,1768784895183,-500.0,0.00015894,2]
[402672770,1768784895209,-500.0,0.00015894,2]
[402672771,1768784895234,-500.0,0.00015894,2]
[402672772,1768784895259,-500.0,0.00015894,2]
[402672773,1768784895285,-500.0,0.00015894,2]
[402672774,1768784895312,-500.0,0.00015894,2]
[402672775,1768784895336,-500.0,0.00015894,2]
[402672776,1768784895361,-500.0,0.00015894,2]
[402672777,1768784895385,-500.0,0.00015894,2]
[402672778,1768784895411,-500.0,0.00015894,2]
[402672779,1768784895438,-500.0,0.00015894,2]
[402672780,1768784895464,-500.0,0.00015894,2]
[402672781,1768784895490,-500.0,0.00015894,2]
[402672782,1768784895515,-500.0,0.00015894,2]
[402672783,1768784895541,-500.0,0.00015894,2]
[402672784,1768784895567,-500.0,0.00015894,2]
[402672785,1768784895592,-500.0,0.00015894,2]
[402672786,1768784895617,-500.0,0.00015894,2]
[402672787,1768784895643,-500.0,0.00015894,2]
[402672788,1768784895669,-500.0,0.00015894,2]
[402672789,1768784895695,-500.0,0.00015894,2]
[402672790,1768784895721,-500.0,0.00015894,2]
[402672791,1768784895746,-500.0,0.00015894,2]
[402672792,1768784895775,-500.0,0.00015894,2]
[402672793,1768784895803,-500.0,0.00015894,2]
[402672794,1768784895828,-500.0,0.00015894,2]
[402672795,1768784895856,-500.0,0.00015894,2]
[402672796,1768784895884,-500.0,0.00015894,2]
[402672797,1768784895911,-500.0,0.00015894,2]
[402672798,1768784895942,-500.0,0.00015894,2]
[402672799,1768784895968,-500.0,0.00015894,2]
[402672800,1768784895994,-500.0,0.00015894,2]
[402672801,1768784896021,-359.8996485,0.00015894,2]
[402672802,1768784896048,-500.0,0.00015894,2]
[402672803,1768784896075,-500.0,0.00015894,2]
[402672804,1768784896101,-500.0,0.00015894,2]
[402672805,1768784896128,-500.0,0.00015894,2]
[402672806,1768784896153,-500.0,0.00015894,2]
[402672807,1768784896178,-500.0,0.00015894,2]
[402672808,1768784896204,-500.0,0.00015894,2]
[402672809,1768784896231,-500.0,0.00015894,2]
[402672810,1768784896257,-500.0,0.00015894,2]
[402672811,1768784896283,-500.0,0.00015894,2]
[402672812,1768784896308,-500.0,0.00015894,2]
[402672813,1768784896335,-500.0,0.00015894,2]
[402672814,1768784896361,-500.0,0.00015894,2]
[402672815,1768784896386,-150.0,0.00015894,2]
[402672816,1768784896411,-500.0,0.00015894,2]
[402672817,1768784896436,-500.0,0.00015894,2]